[Event "Hetauda Cup Asian Open 2023"]
[Site "Hetauda"]
[Date "2023.11.29"]
[Round "1.1"]
[White "Subhayan Kundu"]
[Black "Abhinav Chauhan"]
[Result "1-0"]
[ECO "B38"]
[WhiteElo "2393"]
[BlackElo "1471"]
[Annotator "RC"]
[PlyCount "63"]
[EventDate "2023.11.28"]
[EventType "swiss"]
[EventCountry "NEP"]
[SourceTitle "playchess.com"]
[Source "ChessBase"]
[SourceQuality "1"]
[TimeControl "5400+30"]

1. e4 {[%emt 0:00:04]} c5 {[%emt 0:15:13]} 2. Nf3 {[%emt 0:00:24]} d6 {[%emt 0:00:36]} 3. d4 {[%emt 0:00:08]} cxd4 {[%emt 0:01:05]} 4. Nxd4 {[%emt 0:00:17]} Nf6 {[%emt 0:00:43]} 5. f3 {[%emt 0:00:10]} g6 {[%emt 0:02:01]} 6. c4 {[%emt 0:00:20]} Bg7 {[%emt 0:01:02]} 7. Nc3 {[%emt 0:00:19]} Nc6 {[%emt 0:03:27]} 8. Be3 O-O {[%emt 0:00:30]} 9. Qd2 {[%emt 0:00:39]} Be6 {[%emt 0:00:30]} 10. Rc1 Rc8 {[%emt 0:00:30]} 11. b3 {[%emt 0:01:00]} Qa5 {[%emt 0:00:30]} 12. Be2 {[%emt 0:00:30]} Nd7 {[%emt 0:00:30]} 13. f4 {[%emt 0:00:30]} Nc5 {[%emt 0:00:30]} 14. Bf3 {[%emt 0:00:30]} Bd7 {[%emt 0:00:30]} 15. Nde2 {[%emt 1:33:09]} Rcd8 {[%emt 0:41:39]} 16. O-O {[%emt 0:00:00]} f5 {[%emt 0:05:45]} 17. exf5 {[%emt 0:00:00]} Bxf5 {[%emt 0:00:35]} 18. Kh1 {[%emt 0:00:00]} Kh8 {[%emt 0:00:30]} 19. Ng3 {[%emt 0:00:00]} Bc8 {[%emt 0:00:30]} 20. Rfd1 {[%emt 0:00:00]} Ne6 {[%emt 0:00:30]} 21. Nge2 {[%emt 0:00:00]} Bh6 {[%emt 0:00:30]} 22. Qb2 {[%emt 0:00:00]} Bg7 {[%emt 0:00:30]} 23. a3 {[%emt 0:00:00]} Qf5 {[%emt 0:00:30]} 24. b4 {[%emt 0:00:00]} a6 {[%emt 0:00:30]} 25. Qd2 {[%emt 0:00:00]} Nc7 {[%emt 0:00:30]} 26. Bb6 {[%emt 0:00:00]} Rd7 {[%emt 0:00:30]} 27. h3 {[%emt 0:00:00]} h5 {[%emt 0:00:30]} 28. Nd5 {[%emt 0:00:00]} Ne6 {[%emt 0:00:30]} 29. Be3 {[%emt 0:00:00]} Rdd8 {[%emt 0:00:30]} 30. b5 {[%emt 0:00:00]} axb5 {[%emt 0:00:30]} 31. cxb5 {[%emt 0:00:00]} Nb8 {[%emt 0:00:30]} 32. Nxe7 {[%emt 0:00:00]} 1-0

[Event "Hetauda Cup Asian Open 2023"]
[Site "Hetauda"]
[Date "2023.11.29"]
[Round "2.1"]
[White "Ashish Raj"]
[Black "Subhayan Kundu"]
[Result "0-1"]
[ECO "C01"]
[WhiteElo "1662"]
[BlackElo "2393"]
[Annotator "RC"]
[PlyCount "66"]
[EventDate "2023.11.28"]
[EventType "swiss"]
[EventCountry "NEP"]
[SourceTitle "playchess.com"]
[Source "ChessBase"]
[SourceQuality "1"]
[TimeControl "5400+30"]

1. e4 {[%emt 0:00:04]} e6 {[%emt 0:01:48]} 2. d4 {[%emt 0:00:23]} d5 {[%emt 0:00:11]} 3. Bd3 {[%emt 0:00:48]} c5 {[%emt 0:00:11]} 4. exd5 {[%emt 0:00:41]} exd5 {[%emt 0:00:02]} 5. Nf3 {[%emt 0:03:41]} c4 {[%emt 0:00:18]} 6. Be2 {[%emt 0:00:15]} Nf6 {[%emt 0:00:04]} 7. b3 {[%emt 0:00:21]} cxb3 {[%emt 0:00:06]} 8. axb3 {[%emt 0:00:14]} Nc6 {[%emt 1:31:50]} 9. O-O {[%emt 0:00:55]} Be7 {[%emt 0:00:00]} 10. c4 {[%emt 0:06:56]} O-O {[%emt 0:01:00]} 11. Na3 {[%emt 1:21:42]} Bf5 {[%emt 0:00:00]} 12. Ne5 Nb4 13. Nd3 {[%emt 0:00:00]} dxc4 {[%emt 0:00:00]} 14. Nxb4 {[%emt 0:00:00]} Bxb4 {[%emt 0:00:00]} 15. Nxc4 {[%emt 0:02:00]} Ne4 {[%emt 0:00:00]} 16. Bb2 {[%emt 0:00:00]} Nc3 {[%emt 0:03:00]} 17. Qd2 {[%emt 0:00:00]} Qxd4 {[%emt 0:00:00]} 18. Qxd4 {[%emt 0:00:00]} Nxe2+ {[%emt 0:01:00]} 19. Kh1 {[%emt 0:00:00]} Nxd4 {[%emt 0:00:30]} 20. Bxd4 {[%emt 0:00:00]} a5 {[%emt 0:00:00]} 21. Rfc1 {[%emt 0:00:00]} Rfc8 {[%emt 0:00:00]} 22. Nb6 {[%emt 0:00:00]} Rxc1+ {[%emt 0:00:00]} 23. Rxc1 {[%emt 0:00:00]} Rd8 {[%emt 0:00:00]} 24. Be3 {[%emt 0:00:00]} Bc2 {[%emt 0:00:00]} 25. h3 {[%emt 0:00:00]} Bxb3 {[%emt 0:00:00]} 26. Rb1 {[%emt 0:00:00]} Rd1+ {[%emt 0:00:00]} 27. Rxd1 {[%emt 0:00:00]} Bxd1 {[%emt 0:00:00]} 28. Nd5 {[%emt 0:00:00]} Bd6 {[%emt 0:00:00]} 29. Bd4 {[%emt 0:00:00]} a4 {[%emt 0:00:00]} 30. Kg1 {[%emt 0:00:00]} a3 {[%emt 0:00:00]} 31. Kf1 {[%emt 0:00:00]} a2 {[%emt 0:00:00]} 32. Ke1 {[%emt 0:00:00]} Bb3 {[%emt 0:00:00]} 33. Ne3 {[%emt 0:00:00]} f6 {[%emt 0:00:00]} 0-1

[Event "Hetauda Cup Asian Open 2023"]
[Site "Hetauda"]
[Date "2023.11.29"]
[Round "2.2"]
[White "Mohammad Minhaz Uddin"]
[Black "Akshat Negi"]
[Result "1-0"]
[ECO "C84"]
[WhiteElo "2217"]
[BlackElo "1672"]
[Annotator "RC"]
[PlyCount "67"]
[EventDate "2023.11.28"]
[EventType "swiss"]
[EventCountry "NEP"]
[SourceTitle "playchess.com"]
[Source "ChessBase"]
[SourceQuality "1"]
[TimeControl "5400+30"]

1. e4 {[%emt 0:00:03]} e5 {[%emt 0:05:51]} 2. Nf3 {[%emt 1:31:27]} Nc6 3. Bb5 Nf6 4. d3 d6 5. O-O {[%emt 0:00:00]} Be7 {[%emt 0:01:46]} 6. c3 {[%emt 0:00:00]} O-O {[%emt 0:00:00]} 7. Nbd2 {[%emt 0:00:00]} a6 {[%emt 0:00:57]} 8. Ba4 {[%emt 0:00:00]} h6 {[%emt 0:01:03]} 9. Re1 {[%emt 0:03:30]} b5 10. Bc2 Re8 11. Nf1 Bf8 12. a4 Rb8 13. h3 {[%emt 0:00:00]} Ne7 {[%emt 1:27:23]} 14. axb5 {[%emt 0:00:00]} axb5 {[%emt 0:00:00]} 15. d4 {[%emt 0:00:00]} Ng6 {[%emt 0:00:00]} 16. Ng3 {[%emt 0:00:00]} c5 {[%emt 0:00:00]} 17. Be3 {[%emt 0:00:00]} Bb7 {[%emt 0:00:00]} 18. dxc5 {[%emt 0:00:00]} dxc5 {[%emt 0:00:00]} 19. Qxd8 {[%emt 0:00:00]} Rexd8 {[%emt 0:00:00]} 20. Ra7 {[%emt 0:00:00]} Ne8 {[%emt 0:00:00]} 21. h4 {[%emt 0:00:00]} f6 {[%emt 0:00:00]} 22. h5 {[%emt 0:00:00]} Nh8 {[%emt 0:00:00]} 23. Nh4 {[%emt 0:00:00]} Nc7 {[%emt 0:00:00]} 24. Bb3+ {[%emt 0:00:00]} Kh7 {[%emt 0:00:00]} 25. Nhf5 {[%emt 0:00:00]} Rd7 {[%emt 0:00:00]} 26. Bd1 {[%emt 0:00:00]} Ne6 {[%emt 0:00:00]} 27. Bg4 {[%emt 0:00:00]} Bc8 {[%emt 0:00:00]} 28. Rxd7 {[%emt 0:00:53]} Bxd7 {[%emt 0:00:00]} 29. Rd1 {[%emt 0:00:18]} Rb7 {[%emt 0:00:00]} 30. Nd6 {[%emt 0:02:32]} Rb6 {[%emt 0:00:00]} 31. Nc4 {[%emt 0:03:09]} bxc4 {[%emt 0:00:00]} 32. Rxd7 {[%emt 0:00:02]} Nf4 {[%emt 0:00:00]} 33. Rd8 {[%emt 0:02:12]} Kg8 {[%emt 0:00:00]} 34. Rxf8+ {[%emt 0:00:17]} 1-0

[Event "Hetauda Cup Asian Open 2023"]
[Site "Hetauda"]
[Date "2023.11.30"]
[Round "3.1"]
[White "Subhayan Kundu"]
[Black "Silwal, Purushottam"]
[Result "1-0"]
[ECO "B38"]
[WhiteElo "2393"]
[BlackElo "1897"]
[Annotator "RC"]
[PlyCount "69"]
[EventDate "2023.11.28"]
[EventType "swiss"]
[EventCountry "NEP"]
[SourceTitle "playchess.com"]
[Source "ChessBase"]
[SourceQuality "1"]
[TimeControl "5400+30"]

1. e4 {[%emt 0:00:30]} c5 {[%emt 0:00:00]} 2. Nf3 {[%emt 0:00:00]} Nc6 {[%emt 0:00:00]} 3. d4 {[%emt 0:00:27]} cxd4 {[%emt 1:32:00]} 4. Nxd4 {[%emt 0:00:05]} g6 {[%emt 0:00:30]} 5. c4 {[%emt 0:00:53]} Bg7 {[%emt 0:00:00]} 6. Be3 {[%emt 0:00:10]} Nf6 {[%emt 0:00:00]} 7. Nc3 {[%emt 0:00:30]} O-O {[%emt 0:00:00]} 8. Be2 {[%emt 0:00:00]} d6 {[%emt 0:00:00]} 9. O-O {[%emt 0:00:17]} Nxd4 {[%emt 0:00:00]} 10. Bxd4 {[%emt 0:00:30]} Bd7 {[%emt 0:00:00]} 11. Re1 {[%emt 0:00:00]} Bc6 {[%emt 0:00:00]} 12. Qc2 {[%emt 0:00:07]} a5 {[%emt 0:00:00]} 13. b3 {[%emt 0:00:08]} Nd7 {[%emt 0:00:00]} 14. Bxg7 {[%emt 0:00:23]} Kxg7 {[%emt 0:00:00]} 15. Rad1 {[%emt 0:00:08]} Qb6 {[%emt 0:00:00]} 16. Bf1 {[%emt 0:05:56]} a4 {[%emt 0:00:00]} 17. Qb2 {[%emt 0:01:14]} Kg8 {[%emt 0:00:00]} 18. b4 {[%emt 0:00:40]} Ne5 {[%emt 0:00:00]} 19. a3 {[%emt 1:28:02]} Rfd8 {[%emt 0:00:00]} 20. h3 {[%emt 0:00:00]} e6 {[%emt 0:00:00]} 21. Kh1 {[%emt 0:00:00]} Be8 {[%emt 0:00:00]} 22. f4 {[%emt 0:00:00]} Nc6 23. Nb5 {[%emt 0:00:00]} Na7 {[%emt 0:00:00]} 24. Rxd6 {[%emt 0:00:00]} Rxd6 {[%emt 0:00:00]} 25. c5 {[%emt 0:00:00]} Nxb5 {[%emt 0:10:30]} 26. cxb6 {[%emt 0:00:00]} Rxb6 {[%emt 0:00:00]} 27. Qf2 {[%emt 0:00:00]} Rba6 {[%emt 0:00:00]} 28. f5 {[%emt 0:00:00]} Rc8 {[%emt 0:00:00]} 29. Qf4 {[%emt 0:00:00]} exf5 {[%emt 0:00:00]} 30. exf5 {[%emt 0:00:00]} Bd7 {[%emt 0:00:00]} 31. Re7 {[%emt 0:00:00]} Rf6 {[%emt 0:00:00]} 32. Rxd7 {[%emt 0:00:00]} Rxf5 {[%emt 0:00:00]} 33. Qxf5 {[%emt 0:00:00]} gxf5 {[%emt 0:00:00]} 34. Bxb5 {[%emt 0:00:00]} Rc3 {[%emt 0:00:00]} 35. Rd3 {[%emt 0:00:00]} 1-0

[Event "Hetauda Cup Asian Open 2023"]
[Site "Hetauda"]
[Date "2023.11.30"]
[Round "3.2"]
[White "Dahal, Sushrut"]
[Black "Mohammad Minhaz Uddin"]
[Result "0-1"]
[ECO "D00"]
[WhiteElo "1865"]
[BlackElo "2217"]
[Annotator "RC"]
[PlyCount "50"]
[EventDate "2023.11.28"]
[EventType "swiss"]
[EventCountry "NEP"]
[SourceTitle "playchess.com"]
[Source "ChessBase"]
[SourceQuality "1"]
[TimeControl "5400+30"]

1. d4 {[%emt 0:00:38]} Nf6 {[%emt 0:00:03]} 2. Nc3 {[%emt 0:00:08]} d5 {[%emt 0:00:43]} 3. Bf4 {[%emt 0:00:04]} a6 {[%emt 0:01:12]} 4. e3 {[%emt 0:00:52]} e6 {[%emt 0:00:44]} 5. a3 {[%emt 0:02:54]} c5 {[%emt 0:00:18]} 6. Be2 {[%emt 0:02:09]} Nc6 {[%emt 0:00:41]} 7. Nf3 {[%emt 0:03:57]} b6 {[%emt 0:03:56]} 8. Ne5 {[%emt 0:02:46]} Bb7 {[%emt 0:00:30]} 9. g4 {[%emt 0:08:31]} b5 {[%emt 0:02:59]} 10. g5 {[%emt 0:08:30]} Nd7 {[%emt 0:02:28]} 11. Nxc6 {[%emt 0:04:59]} Bxc6 {[%emt 0:00:03]} 12. Rg1 {[%emt 0:03:53]} g6 {[%emt 0:05:56]} 13. h4 {[%emt 0:02:12]} h5 {[%emt 0:01:43]} 14. Nb1 {[%emt 0:15:19]} Qe7 {[%emt 0:06:04]} 15. c3 {[%emt 0:03:24]} Bg7 {[%emt 0:04:03]} 16. Bg3 {[%emt 0:02:33]} e5 {[%emt 0:00:48]} 17. dxc5 {[%emt 0:05:07]} Nxc5 {[%emt 0:00:53]} 18. Qc2 {[%emt 0:03:05]} O-O {[%emt 0:05:47]} 19. Nd2 {[%emt 0:03:08]} Rac8 {[%emt 0:04:53]} 20. Nb3 {[%emt 0:02:40]} d4 {[%emt 0:04:24]} 21. exd4 {[%emt 0:10:12]} Nxb3 22. Qxb3 {[%emt 0:00:14]} exd4 {[%emt 0:02:33]} 23. Kf1 {[%emt 0:01:51]} Rfe8 {[%emt 0:01:39]} 24. Bd3 {[%emt 0:01:44]} dxc3 {[%emt 0:00:12]} 25. bxc3 {[%emt 0:01:23]} Qd7 {[%emt 0:01:09]} 0-1

[Event "Hetauda Cup Asian Open 2023"]
[Site "Hetauda"]
[Date "2023.11.30"]
[Round "4.1"]
[White "Choubey Saurabh"]
[Black "Subhayan Kundu"]
[Result "0-1"]
[ECO "A89"]
[WhiteElo "1976"]
[BlackElo "2393"]
[Annotator "RC"]
[PlyCount "120"]
[EventDate "2023.11.28"]
[EventType "swiss"]
[EventCountry "NEP"]
[SourceTitle "playchess.com"]
[Source "ChessBase"]
[SourceQuality "1"]
[TimeControl "5400+30"]

1. d4 {[%emt 0:00:30]} f5 {[%emt 0:01:56]} 2. c4 {[%emt 0:03:28]} Nf6 {[%emt 0:00:11]} 3. g3 {[%emt 0:00:40]} g6 {[%emt 0:00:24]} 4. Bg2 {[%emt 0:00:20]} Bg7 {[%emt 0:00:06]} 5. Nc3 {[%emt 0:00:30]} O-O {[%emt 0:00:17]} 6. Nf3 {[%emt 0:03:33]} d6 {[%emt 0:00:19]} 7. O-O {[%emt 0:00:23]} Nc6 {[%emt 1:30:47]} 8. d5 {[%emt 0:03:01]} Na5 {[%emt 0:00:00]} 9. Qd3 {[%emt 0:02:56]} e5 {[%emt 0:00:00]} 10. dxe6 {[%emt 0:01:22]} Bxe6 {[%emt 0:00:00]} 11. b3 {[%emt 0:08:49]} Nc6 {[%emt 0:00:00]} 12. Bb2 {[%emt 0:03:29]} h6 {[%emt 0:00:00]} 13. Nd4 {[%emt 0:05:17]} Bd7 {[%emt 0:00:00]} 14. Nd5 {[%emt 0:04:57]} Ne5 {[%emt 0:00:00]} 15. Qc2 {[%emt 0:05:05]} c6 {[%emt 0:00:00]} 16. Nf4 {[%emt 0:03:29]} Re8 {[%emt 0:00:00]} 17. Rad1 {[%emt 0:02:48]} g5 {[%emt 0:00:00]} 18. Nd3 {[%emt 0:01:17]} Nf7 {[%emt 0:00:00]} 19. e3 {[%emt 0:02:30]} Qe7 {[%emt 0:00:00]} 20. Nc1 {[%emt 0:01:35]} Ne4 {[%emt 0:00:00]} 21. Nf3 {[%emt 0:03:25]} a5 {[%emt 0:00:00]} 22. Bxg7 {[%emt 0:01:49]} Kxg7 {[%emt 0:00:00]} 23. Ne2 {[%emt 0:01:25]} Qf6 {[%emt 0:00:00]} 24. Nd2 {[%emt 0:02:43]} Nc5 {[%emt 0:00:00]} 25. a3 {[%emt 0:03:36]} f4 {[%emt 0:00:00]} 26. gxf4 {[%emt 0:04:48]} Bf5 {[%emt 0:00:00]} 27. e4 {[%emt 0:01:04]} gxf4 {[%emt 0:00:00]} 28. Nxf4 {[%emt 0:03:32]} Bg4 {[%emt 0:00:00]} 29. f3 {[%emt 0:00:30]} Qxf4 {[%emt 0:00:00]} 30. fxg4 {[%emt 0:00:22]} Qxg4 {[%emt 0:00:00]} 31. Rf3 {[%emt 0:00:30]} Qh5 {[%emt 0:00:00]} 32. Rdf1 {[%emt 0:00:30]} Ne5 {[%emt 0:00:00]} 33. Rg3+ {[%emt 0:00:30]} Kh7 {[%emt 0:00:00]} 34. Nf3 {[%emt 0:00:30]} Rg8 {[%emt 0:00:00]} 35. Nxe5 {[%emt 0:00:30]} Qxe5 {[%emt 0:00:00]} 36. Rf7+ {[%emt 0:15:09]} Kh8 {[%emt 0:00:00]} 37. Qd2 {[%emt 0:00:57]} Rg5 {[%emt 0:15:00]} 38. Rxg5 {[%emt 0:08:20]} hxg5 {[%emt 0:00:30]} 39. Qd1 {[%emt 0:00:51]} Kg8 {[%emt 0:00:00]} 40. Qh5 {[%emt 0:00:30]} Qa1+ {[%emt 0:00:00]} 41. Kf2 {[%emt 0:02:42]} Qd4+ {[%emt 0:00:00]} 42. Kg3 {[%emt 0:00:30]} Nxe4+ 43. Bxe4 {[%emt 0:00:41]} Qxe4 {[%emt 0:00:00]} 44. Rf3 {[%emt 0:00:33]} Qh4+ {[%emt 0:00:00]} 45. Qxh4 {[%emt 0:00:06]} gxh4+ {[%emt 0:00:00]} 46. Kxh4 {[%emt 0:00:11]} a4 {[%emt 0:00:00]} 47. Kg5 {[%emt 0:01:04]} Kg7 {[%emt 0:04:30]} 48. Rd3 {[%emt 0:01:13]} Kf7 {[%emt 0:00:00]} 49. Rxd6 {[%emt 0:00:00]} axb3 {[%emt 0:00:00]} 50. Rd7+ {[%emt 0:00:06]} Ke6 {[%emt 0:00:00]} 51. Rxb7 {[%emt 0:00:06]} Rxa3 {[%emt 0:00:00]} 52. h4 {[%emt 0:00:43]} Kd6 {[%emt 0:02:30]} 53. h5 {[%emt 0:00:58]} Kc5 {[%emt 0:00:30]} 54. h6 {[%emt 0:00:32]} Kxc4 {[%emt 0:00:00]} 55. Rb8 {[%emt 0:00:29]} Ra7 {[%emt 0:00:00]} 56. Kg6 {[%emt 0:00:30]} c5 {[%emt 0:00:00]} 57. h7 {[%emt 0:00:30]} Rxh7 {[%emt 0:00:00]} 58. Kxh7 {[%emt 0:00:30]} Kc3 {[%emt 0:00:00]} 59. Kg6 {[%emt 0:00:30]} c4 {[%emt 0:00:00]} 60. Kf6 {[%emt 0:00:30]} Kb2 {[%emt 0:00:00]} 0-1

[Event "Hetauda Cup Asian Open 2023"]
[Site "Hetauda"]
[Date "2023.11.30"]
[Round "4.2"]
[White "Mohammad Minhaz Uddin"]
[Black "Singh, Arvinder Preet"]
[Result "1-0"]
[ECO "B59"]
[WhiteElo "2217"]
[BlackElo "2040"]
[Annotator "RC"]
[PlyCount "105"]
[EventDate "2023.11.28"]
[EventType "swiss"]
[EventCountry "NEP"]
[SourceTitle "playchess.com"]
[Source "ChessBase"]
[SourceQuality "1"]
[TimeControl "5400+30"]

1. e4 {[%emt 0:00:03]} c5 {[%emt 0:02:43]} 2. Nf3 {[%emt 0:00:03]} Nc6 {[%emt 0:00:04]} 3. d4 {[%emt 0:00:13]} cxd4 {[%emt 0:00:05]} 4. Nxd4 {[%emt 0:00:05]} Nf6 {[%emt 0:00:08]} 5. Nc3 {[%emt 0:00:04]} d6 {[%emt 1:30:00]} 6. Be2 {[%emt 0:00:43]} e5 {[%emt 0:00:00]} 7. Nb3 {[%emt 0:00:09]} Be7 {[%emt 0:00:00]} 8. Bg5 {[%emt 0:00:49]} Be6 {[%emt 0:00:00]} 9. O-O {[%emt 0:00:43]} O-O {[%emt 0:00:00]} 10. Bxf6 {[%emt 0:00:37]} Bxf6 {[%emt 0:00:00]} 11. Nd5 {[%emt 0:01:03]} Bxd5 {[%emt 0:00:00]} 12. Qxd5 {[%emt 0:00:30]} Qc7 {[%emt 0:00:00]} 13. c3 {[%emt 0:07:54]} Rfd8 {[%emt 0:00:00]} 14. Bc4 {[%emt 0:05:11]} Rac8 {[%emt 0:00:00]} 15. Nd2 {[%emt 0:03:55]} Na5 {[%emt 0:00:00]} 16. Bb3 {[%emt 0:01:07]} Bg5 {[%emt 0:00:00]} 17. Nf3 {[%emt 0:03:43]} Bh6 {[%emt 0:00:00]} 18. Rfd1 {[%emt 0:04:14]} b6 {[%emt 0:00:00]} 19. Qd3 {[%emt 0:08:16]} Nxb3 20. axb3 {[%emt 0:00:03]} a5 {[%emt 0:00:00]} 21. Qe2 {[%emt 0:06:18]} g6 {[%emt 0:00:00]} 22. Rd5 {[%emt 0:00:27]} Bf8 {[%emt 0:00:00]} 23. Rad1 {[%emt 0:00:44]} Re8 {[%emt 0:00:00]} 24. Nd2 {[%emt 0:02:21]} Re6 {[%emt 0:00:00]} 25. Qa6 {[%emt 0:01:19]} f5 {[%emt 0:00:00]} 26. Rb5 {[%emt 0:07:34]} Rb8 {[%emt 0:00:00]} 27. exf5 {[%emt 0:13:14]} gxf5 {[%emt 0:00:00]} 28. Nc4 {[%emt 0:00:08]} Rg6 {[%emt 0:00:00]} 29. Rxb6 {[%emt 0:00:45]} f4 {[%emt 0:01:08]} 30. Rxb8 {[%emt 0:13:36]} Qxb8 {[%emt 0:00:01]} 31. Nd2 {[%emt 0:01:23]} d5 {[%emt 0:04:11]} 32. Qxa5 {[%emt 0:00:18]} Qb7 {[%emt 0:00:09]} 33. c4 {[%emt 0:07:20]} dxc4 {[%emt 0:00:31]} 34. g3 {[%emt 0:01:23]} fxg3 {[%emt 0:01:00]} 35. hxg3 {[%emt 0:00:38]} cxb3 {[%emt 0:02:31]} 36. Re1 {[%emt 0:02:15]} Rh6 {[%emt 0:05:19]} 37. Re4 {[%emt 0:00:50]} Qc6 {[%emt 0:00:28]} 38. Qxe5 {[%emt 0:09:32]} Qc1+ {[%emt 0:00:24]} 39. Nf1 {[%emt 0:00:00]} Qd1 {[%emt 0:00:39]} 40. Rf4 {[%emt 0:00:00]} Qd7 {[%emt 0:00:29]} 41. Qb8 {[%emt 0:00:00]} Qe7 {[%emt 0:00:39]} 42. Qxb3+ {[%emt 0:00:00]} Kh8 {[%emt 0:00:15]} 43. Qb8 {[%emt 0:00:00]} Kg7 {[%emt 0:00:33]} 44. Ne3 {[%emt 0:00:00]} Rf6 {[%emt 0:00:39]} 45. Nf5+ {[%emt 0:00:00]} Rxf5 {[%emt 0:00:05]} 46. Rxf5 {[%emt 0:00:00]} Qe1+ {[%emt 0:00:21]} 47. Kh2 {[%emt 0:00:00]} Be7 {[%emt 0:00:15]} 48. Qe8 {[%emt 0:00:00]} Qe6 {[%emt 0:00:42]} 49. Rf3 {[%emt 0:00:00]} Qh6+ {[%emt 0:01:08]} 50. Kg2 {[%emt 0:00:00]} Bf6 {[%emt 0:00:14]} 51. Qd7+ {[%emt 0:00:00]} Kg8 {[%emt 0:00:43]} 52. Qe6+ {[%emt 0:00:00]} Kg7 {[%emt 0:01:06]} 53. Qxf6+ {[%emt 0:00:00]} 1-0

[Event "Hetauda Cup Asian Open 2023"]
[Site "Hetauda"]
[Date "2023.12.01"]
[Round "5.1"]
[White "Subhayan Kundu"]
[Black "Mohammad Minhaz Uddin"]
[Result "1/2-1/2"]
[ECO "C27"]
[WhiteElo "2393"]
[BlackElo "2217"]
[Annotator "RC"]
[PlyCount "47"]
[EventDate "2023.11.28"]
[EventType "swiss"]
[EventCountry "NEP"]
[SourceTitle "playchess.com"]
[Source "ChessBase"]
[SourceQuality "1"]
[TimeControl "5400+30"]

1. e4 {[%emt 0:06:59]} e5 {[%emt 0:00:04]} 2. Bc4 {[%emt 0:00:20]} Nf6 {[%emt 0:00:08]} 3. Nc3 {[%emt 0:00:18]} Nxe4 {[%emt 0:11:47]} 4. Qh5 {[%emt 0:00:36]} Nd6 {[%emt 0:00:36]} 5. Qxe5+ {[%emt 0:00:08]} Qe7 {[%emt 0:00:05]} 6. Qxe7+ {[%emt 0:00:12]} Bxe7 {[%emt 0:00:02]} 7. Be2 {[%emt 0:00:06]} O-O {[%emt 0:00:17]} 8. Nf3 {[%emt 0:04:05]} c6 {[%emt 0:00:58]} 9. d4 {[%emt 0:00:31]} Ne8 {[%emt 0:00:45]} 10. d5 {[%emt 0:01:11]} d6 {[%emt 0:07:56]} 11. Bf4 {[%emt 0:01:34]} c5 {[%emt 0:00:47]} 12. O-O-O {[%emt 0:01:50]} f6 {[%emt 0:08:32]} 13. Rhe1 {[%emt 0:13:51]} Nd7 {[%emt 0:10:31]} 14. Bg3 {[%emt 0:01:07]} Rf7 {[%emt 0:02:44]} 15. Nd2 {[%emt 0:05:39]} f5 {[%emt 0:02:23]} 16. Bd3 {[%emt 0:02:57]} Kf8 {[%emt 0:02:38]} 17. f4 {[%emt 0:04:53]} Nb6 {[%emt 0:11:45]} 18. a4 {[%emt 0:02:02]} Bd7 {[%emt 0:02:00]} 19. a5 {[%emt 0:11:35]} Nc8 {[%emt 0:36:02]} 20. Kb1 {[%emt 0:00:12]} Kg8 {[%emt 0:00:00]} 21. Kc1 {[%emt 0:00:05]} Kf8 {[%emt 0:00:00]} 22. Kb1 {[%emt 0:41:19]} Kg8 {[%emt 0:00:00]} 23. Kc1 {[%emt 0:00:30]} Kf8 {[%emt 0:00:00]} 24. Kb1 {[%emt 0:00:00]} 1/2-1/2

[Event "Hetauda Cup Asian Open 2023"]
[Site "Hetauda"]
[Date "2023.12.01"]
[Round "5.2"]
[White "Bartakke, Amardeep S."]
[Black "Nayem, Haque"]
[Result "0-1"]
[ECO "C70"]
[WhiteElo "1963"]
[BlackElo "2053"]
[Annotator "RC"]
[PlyCount "107"]
[EventDate "2023.11.28"]
[EventType "swiss"]
[EventCountry "NEP"]
[SourceTitle "playchess.com"]
[Source "ChessBase"]
[SourceQuality "1"]
[TimeControl "5400+30"]

1. e4 {[%emt 0:04:49]} e5 {[%emt 0:00:06]} 2. Nf3 {[%emt 0:00:21]} Nc6 {[%emt 0:00:03]} 3. Bb5 {[%emt 0:00:10]} a6 {[%emt 0:00:22]} 4. Ba4 {[%emt 0:00:03]} f5 {[%emt 0:00:25]} 5. d3 {[%emt 0:05:40]} d6 {[%emt 0:04:53]} 6. Nc3 {[%emt 0:07:40]} Be7 {[%emt 0:00:08]} 7. Bb3 {[%emt 0:00:55]} f4 {[%emt 0:02:38]} 8. Nd5 {[%emt 0:06:28]} Bg4 {[%emt 0:03:33]} 9. c3 {[%emt 0:00:59]} Nf6 {[%emt 0:00:05]} 10. a3 {[%emt 0:02:21]} Qd7 {[%emt 0:01:10]} 11. Bd2 {[%emt 0:07:16]} Nxd5 {[%emt 0:06:21]} 12. Bxd5 {[%emt 0:00:11]} Bf6 {[%emt 0:06:10]} 13. Qb3 {[%emt 0:04:16]} Nd8 {[%emt 0:00:31]} 14. Qc2 {[%emt 0:01:43]} c6 {[%emt 0:01:54]} 15. Ba2 {[%emt 0:00:25]} Bxf3 {[%emt 0:00:06]} 16. gxf3 {[%emt 0:00:24]} Ne6 {[%emt 0:00:16]} 17. Bxe6 {[%emt 0:06:37]} Qxe6 {[%emt 0:00:07]} 18. c4 {[%emt 0:00:02]} O-O {[%emt 0:03:46]} 19. Ba5 {[%emt 0:02:05]} Rf7 {[%emt 0:00:08]} 20. Bb6 {[%emt 0:01:06]} Rd7 {[%emt 0:01:23]} 21. O-O-O {[%emt 0:00:51]} c5 {[%emt 0:00:42]} 22. Kb1 {[%emt 0:01:44]} Qh3 {[%emt 0:16:25]} 23. Qe2 {[%emt 0:00:26]} a5 {[%emt 0:00:49]} 24. Qd2 {[%emt 0:12:21]} a4 {[%emt 0:00:21]} 25. Ba5 {[%emt 0:01:38]} Qxf3 {[%emt 0:01:29]} 26. Bc3 {[%emt 0:00:18]} Qh5 {[%emt 0:03:21]} 27. Rdg1 {[%emt 0:05:00]} Qf7 {[%emt 0:03:20]} 28. f3 {[%emt 0:00:36]} b5 {[%emt 0:00:20]} 29. Qe2 {[%emt 0:02:39]} Rb7 {[%emt 0:00:51]} 30. Bd2 {[%emt 0:05:19]} b4 31. axb4 {[%emt 0:00:15]} cxb4 {[%emt 0:01:50]} 32. Bc1 {[%emt 0:03:12]} b3 {[%emt 0:00:20]} 33. Rg4 {[%emt 0:01:06]} a3 {[%emt 0:00:05]} 34. Rhg1 {[%emt 0:00:39]} axb2 {[%emt 0:01:17]} 35. Bxb2 {[%emt 0:00:03]} Ra2 {[%emt 0:00:56]} 36. Qd2 {[%emt 0:01:27]} Rba7 {[%emt 0:16:03]} 37. Qb4 {[%emt 0:03:04]} Qc7 {[%emt 0:02:00]} 38. Qb5 {[%emt 0:02:10]} Kf8 {[%emt 0:01:32]} 39. Rc1 {[%emt 0:05:07]} Ra8 {[%emt 0:10:42]} 40. Rc3 {[%emt 0:06:21]} Rb8 {[%emt 0:02:05]} 41. Qd5 {[%emt 0:00:40]} Qa7 {[%emt 0:02:21]} 42. Rg2 {[%emt 0:01:05]} Qc5 {[%emt 0:02:49]} 43. Qxc5 {[%emt 0:00:14]} dxc5 {[%emt 0:00:01]} 44. Rd2 {[%emt 0:00:12]} Ra6 {[%emt 0:00:33]} 45. Rc1 {[%emt 0:00:50]} Kf7 {[%emt 0:00:11]} 46. Bc3 {[%emt 0:00:27]} Ke6 47. Rb2 {[%emt 0:00:35]} Bh4 48. Rg1 {[%emt 0:00:48]} g6 {[%emt 0:01:55]} 49. Rgg2 {[%emt 0:00:41]} Rd6 {[%emt 0:08:37]} 50. Rg4 {[%emt 0:01:27]} Rxd3 {[%emt 0:00:00]} 51. Rd2 {[%emt 0:00:29]} Rxc3 {[%emt 0:00:00]} 52. Rxh4 {[%emt 0:00:02]} h5 {[%emt 0:00:00]} 53. Rg2 {[%emt 0:00:38]} Kf6 {[%emt 0:00:00]} 54. Rd2 {[%emt 0:00:30]} 0-1